bitfinex-derivatives/quotes_ETHF0:USTF0_20251119
["timestamp","ask_amount","ask_price","bid_price","bid_amount"]
[1763536936929,0.53113,3052.7,3052.6,0.2378]
[1763536937522,0.53113,3052.7,3052.5,0.1401]
[1763536940336,0.53115,3052.5,3052.3,0.00491634]
[1763536940728,0.5313,3051.6,3051.5,0.1401]
[1763536940933,4.92269871,3051.6,3051.5,0.1401]
[1763536941128,3.7391,3051.6,3051.5,0.3779]
[1763536941436,3.7391,3051.6,3051.5,0.1401]
[1763536941738,3.2078,3051.6,3051.5,0.3779]
[1763536942029,4.92264871,3052.0,3051.9,0.2378]
[1763536942234,4.39139871,3052.0,3051.5,0.1401]
[1763536942834,0.53129,3051.7,3051.5,0.1401]
[1763536943034,0.53129,3051.7,3051.6,0.2378]
[1763536945237,3.2078,3052.0,3051.9,0.2451]
[1763536945439,0.5313,3051.7,3051.6,0.2451]
[1763536946842,0.5313,3051.7,3051.5,0.1401]
[1763536947237,1.18359871,3051.6,3051.5,0.1401]
[1763536947935,0.5313,3051.7,3051.6,0.2394]
[1763536948941,1.68761501,3051.7,3051.6,0.2394]
[1763536949636,1.68761501,3051.7,3051.5,0.1401]
[1763536950037,3.2078,3051.6,3051.5,0.1401]
[1763536951337,3.2078,3051.6,3051.5,0.3795]
[1763536954340,3.2078,3051.6,3051.5,0.1401]
[1763536955040,3.7391,3051.6,3051.5,0.1453]
[1763536957135,3.2078,3052.0,3051.5,0.3847]
[1763536957336,0.53129,3051.7,3051.6,0.7707]
[1763536957928,3.2078,3052.0,3051.5,0.1453]
[1763536957929,0.5313,3051.6,3051.5,0.1453]
[1763536960641,0.5313,3051.6,3051.5,0.3847]
[1763536961640,0.5313,3051.6,3051.5,0.91602]
[1763536961841,0.5313,3051.6,3051.5,0.3847]
[1763536964043,3.2078,3052.0,3051.9,0.2394]
[1763536964247,3.2078,3052.0,3051.5,0.67661]
[1763536964547,0.53129,3051.7,3051.6,0.7707]
[1763536966046,3.2078,3052.0,3051.8,0.2394]
[1763536966242,3.73903,3052.0,3051.9,0.2394]
[1763536967949,0.53129,3051.7,3051.6,0.2394]
[1763536969640,0.53129,3051.7,3051.6,0.7707]
[1763536970049,0.53129,3051.7,3051.6,0.2394]
[1763536972146,1.68736133,3052.3,3052.2,0.2394]
[1763536972352,3.2078,3052.4,3052.3,0.2394]
[1763536972552,4.36398133,3052.4,3052.3,0.2394]
[1763536974240,4.36398133,3052.4,3052.3,0.2333608]
[1763536976351,0.53119,3052.3,3052.0,0.1453]
[1763536976653,1.15618133,3052.1,3052.0,0.3847]
[1763536977455,1.15618133,3052.1,3052.0,0.1453]
[1763536978155,3.2078,3052.4,3052.3,0.233]
[1763536978355,4.36398133,3052.4,3052.3,0.233]
[1763536978551,3.2078,3052.4,3052.3,0.233]
[1763536978946,0.00243093,3052.9,3052.7,0.233]
[1763536978947,3.2078,3052.8,3052.7,0.233]
[1763536979257,3.2078,3053.7,3053.5,0.1406]
[1763536980053,3.2078,3053.7,3053.6,0.233]
[1763536980244,3.21088432,3053.7,3053.6,0.233]
[1763536980649,0.00308432,3053.7,3053.6,0.233]
[1763536982651,0.00491634,3054.0,3053.9,0.7639]
[1763536983647,0.00862635,3054.0,3053.9,0.233]
[1763536988260,3.2078,3054.9,3054.5,0.1406]
[1763536989051,0.53075,3054.8,3054.5,0.6714]
[1763536989653,0.53077,3054.7,3054.6,0.233]
[1763536990764,3.21150394,3054.9,3054.8,0.233]
[1763536991760,0.00370394,3054.9,3054.8,0.233]
[1763536994464,0.53075,3054.8,3054.7,3.2078]
[1763536995161,0.00370394,3054.9,3054.7,3.4408]
[1763536995367,0.00370394,3054.9,3054.8,0.233]
[1763536997761,0.00370394,3054.9,3054.8,0.76375]
[1763536999364,0.53075,3054.8,3054.7,3.2078]
[1763536999564,0.00370394,3054.9,3054.7,3.2078]
[1763536999766,0.00370394,3054.9,3054.8,0.233]
[1763536999963,0.53443394,3054.9,3054.7,3.2078]
[1763537000367,0.53075,3054.8,3054.7,3.2078]
[1763537000567,0.53075,3054.8,3054.7,3.73857]
[1763537001066,0.53443394,3054.9,3054.8,0.53075]
[1763537001462,0.53443394,3054.9,3054.7,3.2078]
[1763537001671,0.53075,3054.8,3054.7,3.2078]
[1763537001968,0.53443394,3054.9,3054.8,0.53075]
[1763537002160,0.53075,3054.8,3054.7,3.2078]
[1763537002361,0.53075,3054.8,3054.7,3.97157]
[1763537003164,0.53075,3054.8,3054.7,3.4408]
[1763537003365,0.53075,3054.8,3054.7,3.2078]
[1763537003565,0.53075,3054.8,3054.5,0.1406]
[1763537004775,0.53075,3054.8,3054.6,0.53078]
[1763537004974,1.15409577,3054.7,3054.6,0.77438]
[1763537006868,0.53075,3054.8,3054.7,0.77437]
[1763537007172,3.21150394,3054.9,3054.8,0.77435]
[1763537007372,0.00370394,3054.9,3054.8,0.77435]
[1763537009486,0.00491634,3055.0,3054.9,0.2351]
[1763537009679,0.00491634,3055.0,3054.8,0.53075]
[1763537009983,0.00491634,3055.0,3054.9,0.2351]
[1763537010288,0.00784279,3055.0,3054.9,0.23911748]
[1763537010978,3.2078,3055.8,3055.7,0.76569]
[1763537011184,3.98927882,3055.8,3055.7,0.76569]
[1763537011379,3.2078,3055.8,3055.7,0.76569]
[1763537011975,3.21050296,3055.8,3055.7,0.76569]
[1763537012981,0.00270296,3055.8,3055.7,0.2351]
[1763537017486,0.00270296,3055.8,3055.7,0.76569]
[1763537017890,0.00270296,3055.8,3055.7,0.2351]
[1763537018198,0.00270296,3055.8,3055.7,0.76569]
[1763537022295,3.2078,3057.0,3056.7,0.2351]
[1763537022594,3.2078,3057.4,3057.3,0.2351]
[1763537022894,0.53026,3057.7,3057.5,0.1438]
[1763537023200,0.53026,3057.7,3057.5,0.38307495]
[1763537023201,0.533623,3057.7,3057.5,0.38307495]
[1763537023794,0.003363,3057.7,3057.6,3.4429]
[1763537024896,3.2078,3058.3,3058.2,0.2351]
[1763537025193,0.09064158,3058.6,3058.0,0.1438]
[1763537025194,0.62069158,3058.6,3058.5,0.3789]
[1763537025992,0.62406778,3058.6,3058.5,0.3789]
[1763537027001,0.62406778,3058.6,3058.5,0.1438]
[1763537027202,6.62406778,3058.6,3058.5,0.1438]
[1763537027591,0.62406778,3058.6,3058.5,0.3789]
[1763537027797,0.09401778,3058.6,3058.5,0.3789]
[1763537027997,0.09401778,3058.6,3058.5,0.1438]
[1763537028798,0.09401778,3058.6,3058.5,0.3789]
[1763537029802,0.09401778,3058.6,3058.5,0.1438]
[1763537030108,0.09401778,3058.6,3058.5,0.3789]
[1763537031400,0.09401778,3058.6,3058.5,0.1438]
[1763537031599,6.09401778,3058.6,3058.0,0.1438]
[1763537031803,0.53011,3058.2,3058.0,0.1438]
[1763537032508,0.53019,3057.7,3057.5,0.14797495]
[1763537032803,3.73799,3057.7,3057.5,0.14797495]
[1763537033800,3.73799,3057.7,3057.6,0.2351]
[1763537034101,3.73799,3057.7,3057.5,0.14797495]
[1763537036006,0.53024,3057.4,3057.0,0.1438]
[1763537036905,0.53024,3057.4,3057.3,0.00787156]
[1763537038511,0.53024,3057.4,3057.3,0.24297156]
[1763537038714,3.2078,3057.7,3057.3,0.24297156]
[1763537038907,3.73792,3058.1,3058.0,0.3815]
[1763537040409,3.73792,3058.1,3058.0,0.1483]
[1763537040806,3.73792,3058.1,3058.0,0.3815]
[1763537041305,3.73792,3058.1,3058.0,0.1483]
[1763537041706,3.73792,3058.1,3058.0,0.3815]
[1763537042313,3.2078,3058.1,3058.0,0.3815]
[1763537042807,0.3283,3058.4,3058.0,0.1483]
[1763537043011,0.3283,3058.4,3058.3,0.2332]
[1763537044415,0.53012,3058.1,3058.0,0.1483]
[1763537044806,0.53021,3057.6,3057.5,3.3561]
[1763537045605,0.53021,3057.6,3057.5,3.5893]
[1763537045812,0.53018,3057.8,3057.5,3.3561]
[1763537046011,0.53021,3057.6,3057.5,3.5893]
[1763537046315,0.53021,3057.6,3057.5,3.3561]
[1763537046709,0.53021,3057.6,3057.5,3.5893]
[1763537047014,0.53021,3057.6,3057.5,3.3561]
[1763537048518,0.53021,3057.6,3057.5,0.1483]
[1763537048814,0.53021,3057.6,3057.5,0.3815]
[1763537049214,0.53021,3057.6,3057.5,0.1483]
[1763537050219,0.53021,3057.6,3057.5,0.3815]
[1763537053717,0.53018,3057.8,3057.7,0.2332]
[1763537054109,3.2078,3057.9,3057.8,0.2332]
[1763537054516,0.53016,3058.0,3057.9,0.2332]
[1763537054718,0.3283,3058.4,3058.3,0.2332]
[1763537055315,0.85837,3058.4,3058.3,0.2332]
[1763537055919,0.3283,3058.5,3058.4,0.2332]
[1763537057323,0.09401778,3058.6,3058.5,0.3815]
[1763537058216,0.62405778,3058.6,3058.5,0.3815]
[1763537058420,0.09401778,3058.6,3058.5,0.3815]
[1763537063230,1.778e-05,3058.6,3058.5,0.3815]
[1763537063424,0.03269202,3058.9,3058.8,0.2356]
[1763537063626,0.03269202,3058.9,3058.8,0.7656]
[1763537063828,2.77046202,3059.1,3059.0,0.3756]
[1763537064333,3.30372826,3059.1,3059.0,0.3756]
[1763537065729,3.30372826,3059.1,3059.0,0.14]
[1763537066326,2.77377826,3059.1,3059.0,0.3756]
[1763537066530,3.30372826,3059.1,3059.0,0.3756]
[1763537067724,0.53326624,3059.1,3059.0,3.5834]
[1763537067926,0.00331624,3059.1,3059.0,3.5834]
[1763537068721,3.2078,3059.6,3059.5,0.3755]
[1763537068933,0.52982,3059.9,3059.8,0.2403]
[1763537069632,0.52986,3059.6,3059.5,0.3755]
[1763537069826,0.53269423,3059.6,3059.5,0.37932118]
[1763537070830,0.53269423,3059.6,3059.5,0.13902118]
[1763537071627,1.16932324,3060.9,3059.5,3.21162118]
[1763537071831,0.1408,3061.5,3060.8,3.2078]
[1763537072038,0.1408,3061.5,3060.4,1.98629165]
[1763537072039,0.2389,3061.2,3060.4,2.414]
[1763537072226,0.2389,3060.2,3060.1,1.1487801]
[1763537072418,0.2389,3059.7,3059.6,1.1487801]
[1763537072623,0.2389,3059.6,3059.5,0.00382118]
[1763537072831,0.00280501,3059.7,3059.1,1.1487801]
[1763537072832,0.76883,3059.2,3059.1,3.2078]
[1763537073022,0.1408,3059.0,3058.3,4.3565801]
[1763537073228,0.76907,3057.9,3057.5,3.2078]
[1763537073418,0.2389,3057.6,3057.5,3.19731214]
[1763537073625,0.1408,3056.5,3056.3,3.73823]
[1763537073928,0.003204,3056.5,3056.3,5.46409709]
[1763537074124,0.1408,3057.5,3057.2,0.53028]
[1763537074426,3.2078,3058.4,3057.4,3.2078]
[1763537074633,0.53012,3058.2,3057.4,4.90209458]
[1763537075124,0.53335156,3058.2,3057.5,0.53023]
[1763537075324,0.00323156,3058.2,3057.4,3.2078]
[1763537075523,0.53014,3058.1,3057.4,3.2078]
[1763537075725,0.1408,3058.0,3057.4,3.2078]
[1763537076124,3.3486,3058.0,3057.4,3.2078]
[1763537076532,3.3486,3058.0,3057.5,0.53023]
[1763537077028,3.3486,3058.0,3057.5,8.54423]
[1763537077232,3.2078,3058.0,3057.7,1.69429458]
[1763537077420,3.3486,3058.0,3057.7,1.69429458]
[1763537077625,0.1408,3057.5,3057.1,1.72847007]
[1763537077824,0.1408,3057.0,3056.9,1.69429458]
[1763537078325,0.1408,3057.5,3056.9,1.72847007]
[1763537078528,0.1408,3057.5,3057.1,3.73809]
[1763537078728,0.1408,3057.5,3057.2,0.53027]
[1763537079333,0.2389,3057.2,3056.9,3.42276465]
[1763537079538,0.1408,3057.0,3056.7,3.2078]
[1763537079727,0.76932,3056.4,3056.3,3.21050694]
[1763537079924,0.76932,3056.4,3056.3,0.00270694]
[1763537080242,0.67138,3055.5,3055.0,1.72847007]
[1763537080533,0.67138,3055.5,3054.9,0.53067]
[1763537080926,0.53061,3055.3,3054.8,3.2078]
[1763537081122,0.53461626,3055.3,3054.8,3.21173549]
[1763537081531,0.00400626,3055.3,3054.8,3.21173549]
[1763537081732,0.53462626,3055.3,3054.8,3.21173549]
[1763537081929,0.00400626,3055.3,3054.8,3.21173549]
[1763537082728,0.00400626,3055.3,3054.9,1.69429458]
[1763537083433,0.00400626,3055.3,3054.9,2.22496458]
[1763537083728,0.00400626,3055.3,3055.1,0.53063]
[1763537084937,0.00400626,3055.3,3055.1,2.22492458]
[1763537085636,0.00400626,3055.3,3055.2,3.2078]
[1763537085831,0.00400626,3055.3,3055.1,2.22492458]
[1763537086224,0.1408,3055.0,3054.9,1.69429458]
[1763537086738,0.1408,3055.0,3054.8,3.21173549]
[1763537087037,0.2389,3054.9,3054.8,0.00393549]
[1763537088232,0.1408,3055.0,3054.8,0.53462549]
[1763537088432,0.2389,3054.9,3054.8,0.00393549]
[1763537092645,0.1408,3055.0,3054.8,0.00393549]
[1763537093042,0.76958,3054.9,3054.8,0.00393549]
[1763537095645,0.2389,3054.1,3054.0,3.2078]
[1763537095853,0.1408,3054.0,3053.6,3.2078]
[1763537096152,3.2078,3054.4,3054.2,0.53079]
[1763537096650,3.2078,3054.4,3054.2,0.53456868]
[1763537098250,0.1408,3054.5,3054.4,0.53076]
[1763537099043,0.00490781,3054.6,3054.4,0.53076]
[1763537099248,0.1408,3055.0,3054.7,0.53071]
[1763537099448,0.1408,3055.0,3054.7,3.2078]
[1763537099449,0.53068,3054.9,3054.7,3.2078]
[1763537099645,0.4622,3054.8,3054.7,3.2078]
[1763537100344,0.99296,3054.4,3054.3,3.2078]
[1763537100547,0.99296,3054.4,3053.5,3.2078]
[1763537100548,0.4622,3053.6,3053.5,3.2078]
[1763537100747,0.9931,3053.6,3053.5,3.2078]
[1763537101054,3.4836,3054.0,3053.1,3.2078]
[1763537101055,0.99317,3053.2,3053.1,3.2078]
[1763537101248,0.53103,3052.9,3052.7,3.2078]
[1763537101445,0.2758,3053.0,3052.7,3.73885]
[1763537101749,0.00276312,3053.0,3052.7,3.21091316]
[1763537101950,0.00276312,3053.0,3052.9,0.4658]
[1763537102163,0.00490781,3053.2,3053.1,0.4658]
[1763537102356,0.00490781,3053.2,3053.1,3.6736]
[1763537103155,0.00867203,3053.2,3053.1,3.6736]
[1763537103353,3.2078,3054.1,3053.1,9.2078]
[1763537103653,3.2078,3054.1,3053.8,0.53086]
[1763537104155,3.73862,3054.1,3053.7,0.53088]
[1763537104353,0.53377434,3054.1,3053.7,0.53088]
[1763537104754,0.00295434,3054.1,3053.5,3.4535]
[1763537105060,0.53377434,3054.1,3053.7,0.53088]
[1763537105451,0.2758,3054.0,3053.5,3.73871]
[1763537105652,0.2758,3054.0,3053.5,3.2078]
[1763537106251,0.80664,3054.0,3053.6,0.5309]
[1763537107058,0.53086,3053.9,3053.5,3.73872]
[1763537107258,0.53087,3053.8,3053.5,3.73872]
[1763537107755,0.80664,3054.0,3053.6,0.5309]
[1763537107957,0.80664,3054.0,3053.7,0.53088]
[1763537108765,0.53086,3053.9,3053.6,0.5309]
[1763537109061,0.2758,3054.0,3053.7,0.53088]
[1763537109265,0.53086,3053.9,3053.7,0.53088]
[1763537109454,0.53086,3053.9,3053.5,3.73871]
[1763537109761,0.53089,3053.7,3053.5,3.2078]
[1763537110059,0.2758,3054.0,3053.5,3.6736]
[1763537110060,0.53086,3053.9,3053.5,3.6736]
[1763537110261,0.53089,3053.7,3053.6,0.4658]
[1763537110453,0.53089,3053.7,3053.5,3.2078]
[1763537110454,0.4622,3053.6,3053.5,3.2078]
[1763537110653,0.53087,3053.9,3053.5,4.20452]
[1763537110853,0.53088,3053.8,3053.7,0.4658]
[1763537111660,0.99308,3053.8,3053.7,0.4658]
[1763537111853,0.53089,3053.7,3053.5,3.73872]
[1763537112049,0.53086,3053.9,3053.5,3.73872]
[1763537112253,0.53087,3053.8,3053.7,0.4658]
[1763537112856,0.53086,3053.9,3053.8,0.4658]
[1763537113465,0.2758,3054.0,3053.8,0.4658]
[1763537113660,0.53084,3054.0,3053.8,0.4658]
[1763537113865,0.53084,3054.0,3053.9,0.4658]
[1763537114562,0.4622,3053.8,3053.7,3.2078]
[1763537114764,0.4622,3053.8,3053.4,1.1506912]
[1763537114970,0.4622,3053.4,3053.3,3.2078]
[1763537115560,0.4622,3053.4,3052.8,1.72847007]
[1763537115561,0.99323,3052.9,3052.8,1.1506912]
[1763537115760,0.4622,3052.8,3052.7,3.21091316]
[1763537116065,0.53103,3052.9,3052.7,3.67671316]
[1763537116466,0.4622,3052.8,3052.7,3.21091316]
[1763537118762,3.67,3052.8,3052.7,0.00311316]
[1763537118961,0.4622,3052.6,3052.5,0.00490781]
[1763537120065,0.4622,3052.6,3052.5,0.00901473]
[1763537121277,0.53122,3051.8,3051.5,4.3584912]
[1763537121470,0.53122,3051.8,3051.7,0.4658]
[1763537121961,3.2078,3052.0,3051.9,0.4658]
[1763537122157,3.21146002,3052.0,3051.9,0.46963293]
[1763537122370,3.67366002,3052.0,3051.9,0.00383293]
[1763537122561,3.94946002,3052.0,3051.9,0.00383293]
[1763537122762,3.21146002,3052.0,3051.9,0.61603293]
[1763537124072,3.81266002,3052.0,3051.9,0.61603293]
[1763537124671,4.18566002,3052.0,3051.9,0.00383293]
[1763537125173,3.81266002,3052.0,3051.9,0.61603293]
[1763537125771,3.21146002,3052.0,3051.9,0.61603293]
[1763537126472,0.00366002,3052.0,3051.9,3.82383293]
[1763537126968,4.18566002,3052.0,3051.9,0.00383293]
[1763537127972,0.00366002,3052.0,3051.9,0.00383293]
[1763537128279,0.00366002,3052.0,3051.9,0.61603293]
[1763537130575,0.00490781,3052.3,3052.2,0.6165]
[1763537130876,0.00490781,3052.3,3052.2,4.9749912]
[1763537131273,0.00490781,3052.3,3052.2,3.8243]
[1763537131474,0.00798243,3052.3,3052.2,4.98446464]
[1763537131677,0.00798243,3052.3,3052.2,3.8243]
[1763537132478,0.00798243,3052.3,3052.2,5.55277007]
[1763537133176,3.2078,3052.8,3052.7,1.14756]
[1763537134080,3.21015902,3052.8,3052.7,1.14756]
[1763537135178,0.00235902,3052.8,3052.7,1.14756]
[1763537135382,0.00235902,3052.8,3052.7,4.35536]
[1763537135882,0.00235902,3052.8,3052.7,6.08383007]
[1763537137180,0.00235902,3052.8,3052.7,4.35536]
[1763537140482,3.8286,3053.7,3053.6,0.6165]
[1763537141078,3.2078,3053.7,3053.6,0.6165]
[1763537141584,3.21052386,3053.7,3053.6,1.1474]
[1763537141784,3.83132386,3053.7,3053.6,0.6165]
[1763537142784,4.36221386,3053.7,3053.6,0.6165]
[1763537143095,3.83132386,3053.7,3053.6,0.6165]
[1763537143283,3.83132386,3053.7,3053.6,1.777261]
[1763537143480,3.21052386,3053.7,3053.6,1.777261]
[1763537145586,0.00272386,3053.7,3053.6,0.6165]
[1763537146289,3.2078,3054.1,3054.0,1.43413]
[1763537146789,3.2078,3054.1,3054.0,1.14733]
[1763537147288,3.21149307,3054.1,3054.0,1.14733]
[1763537148588,0.00369307,3054.1,3054.0,1.43413]
[1763537150285,0.3503,3054.0,3053.5,1.15960633]
[1763537150480,0.3503,3054.0,3053.0,5.78848445]
[1763537150481,0.6208,3053.4,3053.0,1.15960633]
[1763537150682,0.6208,3053.4,3053.0,1.69061633]
[1763537151083,0.6208,3053.4,3053.0,0.53101]
[1763537151288,0.6208,3053.4,3053.1,0.53099]
[1763537151483,0.6208,3053.4,3053.2,0.53097]
[1763537151789,0.3503,3053.5,3053.4,0.6165]
[1763537152092,0.9711,3053.5,3053.4,0.6165]
[1763537153390,3.8286,3053.7,3053.6,0.6165]
[1763537154494,3.2078,3053.7,3053.6,0.6165]
[1763537154995,0.6208,3053.5,3053.4,0.6165]
[1763537155196,3.2078,3053.7,3053.5,0.53092]
[1763537155592,0.3503,3054.0,3053.5,1.7411415]
[1763537155788,0.6208,3053.8,3053.7,1.69107918]
[1763537156494,0.9711,3054.0,3053.9,1.14735]
[1763537156691,0.9711,3054.0,3053.9,0.53085]
[1763537157589,0.9711,3054.0,3053.9,1.14735]
[1763537158094,0.5291,3053.8,3053.7,1.16019918]
[1763537158293,0.5291,3053.7,3053.6,1.7411415]
[1763537158695,0.5291,3053.7,3053.6,2.3062415]
[1763537158894,0.5291,3053.7,3053.6,2.8371415]
[1763537159094,0.88114,3054.0,3053.7,0.53087]
[1763537159292,0.5291,3053.9,3053.8,1.16128338]
[1763537160497,0.5291,3053.9,3053.8,1.72638338]
[1763537160697,0.5291,3053.9,3053.8,1.16128338]
[1763537160999,0.5291,3053.8,3053.7,2.8371315]
[1763537161402,0.00369307,3054.1,3054.0,1.41333]
[1763537161696,10.286,3054.9,3054.0,1.41333]
[1763537161697,3.7369,3054.9,3054.0,0.3174]
[1763537161901,0.5291,3054.8,3054.7,0.53071]
[1763537162699,0.5291,3054.7,3054.6,1.74231425]
[1763537162996,0.5291,3054.7,3054.6,1.745162]
[1763537163889,1.05981,3054.7,3054.6,1.745162]
[1763537164199,1.05981,3054.7,3054.6,0.00284775]
[1763537164400,0.5291,3054.7,3054.6,1.745162]
[1763537165401,0.5291,3054.7,3054.6,2.310262]
[1763537166198,0.00305629,3054.8,3054.7,1.09581]
[1763537167098,0.53215629,3054.8,3054.7,0.5651]
[1763537168104,0.53215629,3054.8,3054.7,1.16037539]
[1763537168605,1.05981,3054.7,3054.6,1.16322314]
[1763537170096,1.05981,3054.7,3054.6,1.72832314]
[1763537170306,0.5291,3054.7,3054.6,0.56794775]
[1763537170505,0.5291,3054.7,3054.6,0.00284775]
[1763537170701,0.00305629,3054.8,3054.7,0.5651]
[1763537170899,0.00305629,3054.8,3054.7,1.72605298]
[1763537171202,0.53215629,3054.8,3054.7,1.16095298]
[1763537171402,0.53215629,3054.8,3054.7,1.72605298]
[1763537171600,1.06285629,3054.8,3054.7,1.16095298]
[1763537171805,1.06285629,3054.8,3054.6,0.00284775]
[1763537171806,1.05981,3054.7,3054.6,0.00284775]
[1763537172206,1.05988,3054.3,3054.2,1.16095298]
[1763537172396,4.26768,3054.3,3054.2,1.16095298]
[1763537172806,0.5291,3054.2,3054.1,1.16095298]
[1763537173006,0.8799,3054.0,3053.9,1.16095298]
[1763537173197,0.5291,3053.7,3053.6,1.16095298]
[1763537173409,0.5291,3053.7,3053.6,1.72926926]
[1763537173904,0.5291,3053.7,3053.6,1.16416926]
[1763537174201,3.2078,3053.8,3053.7,1.09599]
[1763537174406,3.2078,3053.8,3053.7,2.25694298]
[1763537174604,3.2078,3053.8,3053.7,1.09599]
[1763537175304,3.7369,3053.8,3053.7,1.09599]
[1763537175605,3.7369,3053.8,3053.7,0.5651]
[1763537175796,3.2078,3053.8,3053.7,2.30741425]
[1763537175998,3.2078,3053.8,3053.7,0.5651]
[1763537177215,0.5308,3054.2,3053.9,0.53085]
[1763537177410,1.0599,3054.2,3054.1,1.16130519]
[1763537177601,0.5291,3054.2,3054.1,1.16130519]
[1763537178002,1.05992,3054.1,3054.0,1.16130519]
[1763537178202,0.8799,3054.0,3053.9,1.74195778]
[1763537178704,1.05995,3053.9,3053.8,1.74195778]
[1763537179708,0.3508,3054.0,3053.9,0.5651]
[1763537180311,0.8799,3054.0,3053.9,0.5651]
[1763537180613,1.05995,3053.9,3053.8,1.74195778]
[1763537181014,0.5291,3053.9,3053.8,2.83792778]
[1763537181215,0.5291,3053.9,3053.8,0.5651]
[1763537181513,0.5291,3053.9,3053.8,1.09597]
[1763537182016,0.3508,3054.0,3053.9,1.09595]
[1763537182210,1.41073,3054.0,3053.9,2.30923685]
[1763537182409,1.41073,3054.0,3053.9,1.74413685]
[1763537182610,0.53082,3054.2,3053.9,2.30923685]
[1763537182813,1.05532,3054.2,3054.1,1.16292953]
[1763537183213,0.5245,3054.2,3054.1,2.19084953]
[1763537183413,0.5245,3054.2,3054.1,1.02792]
[1763537183811,3.2078,3054.3,3054.1,1.02792]
[1763537184122,3.2078,3054.3,3054.2,2.19118812]
[1763537184417,3.2078,3054.3,3054.2,1.0279]
[1763537184726,3.2078,3054.3,3054.2,3.35098567]
[1763537185021,3.2078,3054.3,3054.2,1.0279]
[1763537185219,3.73852,3054.7,3054.5,0.53074]
[1763537185519,3.2078,3054.7,3054.6,2.24034791]
[1763537186613,3.2078,3054.7,3054.6,0.4971]
[1763537189323,3.7323,3054.7,3054.6,0.4971]
[1763537189719,0.5179,3054.6,3054.5,0.53075]
[1763537190118,0.8202,3054.5,3054.4,0.4891]
[1763537190317,0.5179,3054.4,3054.3,2.85385567]
[1763537190518,0.5179,3054.4,3054.3,3.34295567]
[1763537190719,3.7257,3054.7,3054.6,0.4891]
[1763537190918,4.25641,3054.7,3054.6,2.23281705]
[1763537191516,4.25641,3054.7,3054.6,1.74371705]
[1763537191720,0.5179,3054.1,3053.9,2.85393567]
[1763537191924,0.5179,3054.0,3053.9,0.53085]
[1763537192714,0.3023,3054.5,3054.3,0.53078]
[1763537192919,0.3023,3054.5,3054.4,0.4891]
[1763537192920,0.5179,3054.5,3054.4,0.4891]
[1763537193525,1.04865,3054.5,3054.2,6.06168567]
[1763537193921,3.2078,3054.7,3054.3,0.4891]
[1763537194327,0.5179,3054.5,3054.4,0.4891]
[1763537194729,0.5179,3054.3,3054.2,3.2078]
[1763537195423,0.5179,3054.3,3054.2,3.6969]
[1763537196523,3.2078,3054.7,3054.6,0.4891]
[1763537198822,3.2078,3054.7,3054.6,1.01983]
[1763537199235,4.25641,3054.7,3054.6,0.4891]
[1763537200334,3.7257,3054.7,3054.6,0.4891]
[1763537200633,3.7257,3054.7,3054.6,1.01983]
[1763537201533,0.5179,3054.7,3054.6,1.01983]
[1763537201733,1.04861,3054.7,3054.6,0.4891]
[1763537202930,0.5179,3054.7,3054.6,1.01983]
[1763537206036,0.52095629,3054.8,3054.7,1.01981]
[1763537207239,0.00305629,3054.8,3054.7,1.01981]
[1763537208330,0.00305629,3054.8,3054.7,0.4891]
[1763537208536,0.00305629,3054.8,3054.7,1.01981]
[1763537208737,0.52095629,3054.8,3054.7,1.01981]
[1763537210343,0.00305629,3054.8,3054.7,1.01981]
[1763537212146,0.52095629,3054.8,3054.7,1.01981]
[1763537214245,1.05165629,3054.8,3054.7,2.81218567]
[1763537214445,0.52095629,3054.8,3054.7,3.34289567]
[1763537216252,0.00305629,3054.8,3054.7,3.34289567]
[1763537218256,3.7257,3055.3,3055.2,1.01973]
[1763537218958,3.2078,3055.3,3055.2,1.01973]
[1763537219157,3.21166169,3055.3,3055.2,1.01973]
[1763537220656,3.2078,3055.8,3055.7,0.99334]
[1763537221659,3.6759,3056.2,3056.1,0.4628]
[1763537221855,3.67881605,3056.2,3056.1,0.46550532]
[1763537222061,3.67881605,3056.2,3056.1,0.00270532]
[1763537224251,3.67881605,3056.2,3056.1,0.46550532]
[1763537225064,3.67881605,3056.2,3056.1,0.00270532]
[1763537225261,9.67881605,3056.2,3056.1,0.00270532]
[1763537225466,0.99864,3055.7,3055.6,1.74646693]
[1763537225667,0.99864,3055.7,3055.4,1.74646693]
[1763537225668,1.28147,3055.5,3055.4,1.74646693]
[1763537225962,0.4681,3055.5,3055.4,1.74646693]
[1763537226166,0.4681,3055.9,3055.8,0.4628]
[1763537226358,0.4681,3055.9,3055.8,0.46597667]
[1763537226559,0.4681,3055.9,3055.8,0.00317667]
[1763537229764,0.81799,3056.0,3055.4,4.95136305]
[1763537229765,1.27827,3055.5,3055.4,4.95136305]
[1763537229969,1.27827,3055.5,3055.4,3.2078]
[1763537230466,0.99865,3055.7,3055.6,0.4628]
[1763537230668,0.4681,3055.5,3055.4,3.2078]
[1763537230869,0.99871,3055.3,3055.2,1.74356305]
[1763537231166,0.4681,3055.3,3055.2,2.20921484]
[1763537231968,3.6759,3055.5,3055.4,0.4628]
[1763537232168,3.2078,3055.5,3055.4,0.4628]
[1763537232857,3.2078,3055.5,3055.4,2.20636305]
[1763537233169,3.2078,3055.5,3055.4,0.4628]
[1763537233865,0.2875,3056.0,3055.7,0.4628]
[1763537233866,0.99864,3055.8,3055.7,0.4628]
[1763537234058,0.4681,3055.8,3055.7,0.4628]
[1763537234260,0.4681,3055.8,3055.7,2.20618459]
[1763537234970,4.20639,3056.0,3055.9,0.4628]
[1763537235164,0.4681,3056.0,3055.9,0.4628]
[1763537235462,0.00291605,3056.2,3056.1,0.4628]
[1763537235663,0.00291605,3056.2,3056.1,2.20519181]
[1763537235863,0.00291605,3056.2,3056.1,0.4628]
[1763537236463,0.00291605,3056.2,3056.1,2.2047035]
[1763537237072,0.00291605,3056.2,3056.1,0.4628]
[1763537238164,0.00291605,3056.2,3056.1,2.7921284]